lending/lending_fUSD_20240710
["ID","MTS","AMOUNT","RATE_DAILY","PERIOD"]
[331619195,1720585855098,-500.0,0.00013698,2]
[331619196,1720585855107,-856.96,0.00013698,2]
[331619197,1720585855117,-504.41898246,0.00013698,2]
[331619198,1720585855127,-891.23,0.00013698,2]
[331619199,1720585855136,-500.0,0.00013698,2]
[331619200,1720585855145,-821.2,0.00013698,2]
[331619201,1720585855156,-500.0,0.00013698,2]
[331619202,1720585855166,-11149.98,0.00013698,2]
[331619203,1720585855176,-711.36,0.00013698,2]
[331619204,1720585855187,-936.23,0.00013698,2]
[331619205,1720585855196,-500.0,0.00013698,2]
[331619206,1720585855208,-1021.6,0.00013698,2]
[331619207,1720585855218,-2577.26,0.00013698,2]
[331619208,1720585855227,-2073.98,0.00013698,2]
[331619209,1720585855237,-500.0,0.00013698,2]
[331619210,1720585855247,-1493.58,0.00013698,2]
[331619211,1720585855256,-671.65,0.00013698,2]
[331619212,1720585855267,-1303.96,0.00013698,2]
[331619213,1720585855276,-500.0,0.00013698,2]
[331619214,1720585855286,-500.0,0.00013698,2]
[331619215,1720585855295,-1604.62,0.00013698,2]
[331619216,1720585855305,-795.46,0.00013698,2]
[331619217,1720585855314,-624.36,0.00013698,2]
[331619218,1720585855324,-500.0,0.00013698,2]
[331619219,1720585855333,-500.0,0.00013698,2]
[331619220,1720585855343,-4673.32,0.00013698,2]
[331619221,1720585855352,-500.0,0.00013698,2]
[331619222,1720585855363,-1036.69,0.00013698,2]
[331619223,1720585855372,-2173.1,0.00013698,2]
[331619224,1720585855382,-616.7,0.00013698,2]
[331619225,1720585855392,-1035.15,0.00013698,2]
[331619226,1720585855401,-1755.14,0.00013698,2]
[331619227,1720585855410,-1326.84,0.00013698,2]
[331619228,1720585855420,-1399.95,0.00013698,2]
[331619229,1720585855429,-1610.08,0.00013698,2]
[331619230,1720585855439,-500.0,0.00013698,2]
[331619231,1720585855448,-500.0,0.00013698,2]
[331619232,1720585855462,-500.0,0.00013698,2]
[331619233,1720585855474,-821.93,0.00013698,2]
[331619234,1720585855483,-500.0,0.00013698,2]
[331619235,1720585855492,-625.15708804,0.00013698,2]
[331619236,1720585855502,-500.0,0.00013698,2]
[331619237,1720585855512,-1053.79,0.00013698,2]
[331619238,1720585855522,-500.0,0.00013698,2]
[331619239,1720585855532,-725.4,0.00013698,2]
[331619240,1720585855542,-1747.16,0.00013698,2]
[331619241,1720585855551,-500.0,0.00013698,2]
[331619242,1720585855561,-1819.82,0.00013698,2]
[331619243,1720585855570,-1647.96,0.00013698,2]
[331619244,1720585855580,-500.0,0.00013698,2]
[331619245,1720585855589,-500.0,0.00013698,2]
[331619246,1720585855598,-1162.41,0.00013698,2]
[331619247,1720585855608,-500.0,0.00013698,2]
[331619248,1720585855618,-1523.35,0.00013698,2]
[331619249,1720585855628,-6812.75,0.00013698,2]
[331619250,1720585855638,-2330.7,0.00013698,2]
[331619251,1720585855647,-2422.43,0.00013698,2]
[331619252,1720585855657,-524.02,0.00013698,2]
[331619253,1720585855666,-500.0,0.00013698,2]
[331619254,1720585855676,-500.0,0.00013698,2]
[331619255,1720585855686,-500.0,0.00013698,2]
[331619256,1720585855696,-500.0,0.00013698,2]
[331619257,1720585855707,-500.0,0.00013698,2]
[331619258,1720585855716,-500.0,0.00013698,2]
[331619259,1720585855726,-1832.2,0.00013698,2]
[331619260,1720585855736,-859.46,0.00013698,2]
[331619261,1720585855746,-2468.37,0.00013698,2]
[331619262,1720585855756,-1199.8,0.00013698,2]
[331619263,1720585855766,-1104.2,0.00013698,2]
[331619264,1720585855776,-500.0,0.00013698,2]
[331619265,1720585855786,-500.0,0.00013698,2]
[331619266,1720585855795,-811.35,0.00013698,2]
[331619267,1720585855804,-500.0,0.00013698,2]
[331619268,1720585855814,-500.0,0.00013698,2]
[331619269,1720585855824,-2165.33,0.00013698,2]
[331619270,1720585855834,-4331.32,0.00013698,2]
[331619271,1720585855844,-2646.6,0.00013698,2]
[331619272,1720585855854,-967.9,0.00013698,2]
[331619273,1720585855863,-636.81197757,0.00013698,2]
[331619274,1720585855872,-500.0,0.00013698,2]
[331619275,1720585855882,-500.0,0.00013698,2]
[331619276,1720585855892,-704.3,0.00013698,2]
[331619277,1720585855902,-500.0,0.00013698,2]
[331619278,1720585855911,-525.27,0.00013698,2]
[331619279,1720585855921,-898.93,0.00013698,2]
[331619280,1720585855931,-1332.13,0.00013698,2]
[331619281,1720585855941,-582.47,0.00013698,2]
[331619282,1720585855950,-1996.06,0.00013698,2]
[331619283,1720585855965,-500.0,0.00013698,2]
[331619284,1720585855975,-500.0,0.00013698,2]
[331619285,1720585855984,-3281.86,0.00013698,2]
[331619286,1720585855993,-500.0,0.00013698,2]
[331619287,1720585856002,-1972.17,0.00013698,2]
[331619288,1720585856011,-500.0,0.00013698,2]
[331619289,1720585856021,-924.63,0.00013698,2]
[331619290,1720585856030,-964.12,0.00013698,2]
[331619291,1720585856039,-500.0,0.00013698,2]
[331619292,1720585856048,-500.0,0.00013698,2]
[331619293,1720585856057,-500.0,0.00013698,2]
[331619294,1720585856066,-500.0,0.00013698,2]
[331619295,1720585856076,-500.0,0.00013698,2]
[331619296,1720585856086,-500.0,0.00013698,2]
[331619297,1720585856095,-500.0,0.00013698,2]
[331619298,1720585856105,-1369.18,0.00013698,2]
[331619299,1720585856115,-801.39,0.00013698,2]
[331619300,1720585856124,-1630.31,0.00013698,2]
[331619301,1720585856133,-1280.27,0.00013698,2]
[331619302,1720585856143,-2864.06,0.00013698,2]
[331619303,1720585856153,-500.0,0.00013698,2]
[331619304,1720585856163,-500.0,0.00013698,2]
[331619305,1720585856173,-500.0,0.00013698,2]
[331619306,1720585856183,-2041.74,0.00013698,2]
[331619307,1720585856193,-861.68,0.00013698,2]
[331619308,1720585856207,-992.21,0.00013698,2]
[331619309,1720585856217,-500.0,0.00013698,2]
[331619310,1720585856226,-500.0,0.00013698,2]
[331619311,1720585856235,-500.0,0.00013698,2]
[331619312,1720585856245,-151.68,0.00013699,2]
[331619313,1720585856255,-343.07461692,0.00013726,2]
[331619314,1720585856265,-150.0,0.00013726,2]
[331619315,1720585856275,-150.1777291,0.00013726,2]
[331619316,1720585856284,-185.02033319,0.00013726,2]
[331619317,1720585856294,-150.0,0.00013726,2]
[331619318,1720585856303,-150.0,0.00013726,2]
[331619319,1720585856314,-343.07461692,0.00013739,2]
[331619320,1720585856323,-150.1777291,0.00013739,2]
[331619321,1720585856332,-150.0,0.00013739,2]
[331619322,1720585856343,-238.92713038,0.00013743,2]
[331619323,1720585856352,-232.33655,0.0001375,2]
[331619324,1720585856363,-576.46102239,0.0001375,2]
[331619325,1720585856373,-343.07461692,0.00013751,2]
[331619326,1720585856383,-150.1777291,0.00013751,2]
[331619327,1720585856394,-500.0,0.00013752,2]
[331619328,1720585856404,-487.65353821,0.00013752,2]
[331619329,1720585856414,-150.0,0.00013753,2]
[331619330,1720585856424,-500.0,0.00013753,2]
[331619331,1720585856433,-500.0,0.00013753,2]
[331619332,1720585856443,-500.0,0.00013753,2]
[331619333,1720585856453,-500.0,0.00013753,2]
[331619334,1720585856465,-500.0,0.00013753,2]
[331619335,1720585856474,-500.0,0.00013753,2]
[331619336,1720585856483,-500.0,0.00013753,2]
[331619337,1720585856493,-500.0,0.00013753,2]
[331619338,1720585856504,-500.0,0.00013753,2]
[331619339,1720585856514,-500.0,0.00013753,2]
[331619340,1720585856524,-500.0,0.00013753,2]
[331619341,1720585856535,-500.0,0.00013753,2]
[331619342,1720585856545,-500.0,0.00013753,2]
[331619343,1720585856555,-500.0,0.00013753,2]
[331619344,1720585856564,-500.0,0.00013753,2]
[331619345,1720585856574,-500.0,0.00013753,2]
[331619346,1720585856583,-500.0,0.00013753,2]
[331619347,1720585856593,-500.0,0.00013753,2]
[331619348,1720585856603,-500.0,0.00013753,2]
[331619349,1720585856613,-500.0,0.00013753,2]
[331619350,1720585856624,-500.0,0.00013753,2]
[331619351,1720585856635,-500.0,0.00013753,2]
[331619352,1720585856645,-500.0,0.00013753,2]
[331619353,1720585856655,-500.0,0.00013753,2]
[331619354,1720585856664,-891.21,0.00013753,2]
[331619355,1720585856675,-2448.37,0.00013753,2]
[331619356,1720585856684,-500.0,0.00013753,2]
[331619357,1720585856694,-668.8,0.00013753,2]
[331619358,1720585856704,-500.0,0.00013753,2]
[331619359,1720585856715,-500.0,0.00013753,2]
[331619360,1720585856725,-558.15,0.00013753,2]
[331619361,1720585856735,-1645.83,0.00013753,2]
[331619362,1720585856744,-200.0,0.00013753,2]
[331619363,1720585856754,-1091.94,0.00013753,2]
[331619364,1720585856764,-690.09,0.00013753,2]
[331619365,1720585856774,-586.04,0.00013753,2]
[331619366,1720585856784,-1971.47,0.00013753,2]
[331619367,1720585856795,-500.0,0.00013753,2]
[331619368,1720585856805,-500.0,0.00013753,2]
[331619369,1720585856815,-500.0,0.00013753,2]
[331619370,1720585856825,-905.56,0.00013753,2]
[331619371,1720585856835,-1576.43,0.00013753,2]
[331619372,1720585856845,-500.0,0.00013753,2]
[331619373,1720585856855,-1742.21,0.00013753,2]
[331619374,1720585856866,-1898.95,0.00013753,2]
[331619375,1720585856875,-625.6,0.00013753,2]
[331619376,1720585856885,-725.95,0.00013753,2]
[331619377,1720585856895,-607.2,0.00013753,2]
[331619378,1720585856905,-500.0,0.00013753,2]
[331619379,1720585856914,-500.0,0.00013753,2]
[331619380,1720585856924,-1704.78,0.00013753,2]
[331619381,1720585856933,-579.62,0.00013753,2]
[331619382,1720585856943,-500.0,0.00013753,2]
[331619383,1720585856953,-804.68,0.00013753,2]
[331619384,1720585856965,-1941.95,0.00013753,2]
[331619385,1720585856976,-573.38338522,0.00013753,2]
[331619386,1720585856986,-1093.94,0.00013753,2]
[331619387,1720585856996,-500.0,0.00013753,2]
[331619388,1720585857006,-500.0,0.00013753,2]
[331619389,1720585857017,-897.12,0.00013753,2]
[331619390,1720585857026,-605.18,0.00013753,2]
[331619391,1720585857036,-500.0,0.00013753,2]
[331619392,1720585857046,-500.0,0.00013753,2]
[331619393,1720585857055,-500.0,0.00013753,2]
[331619394,1720585857065,-500.0,0.00013753,2]
[331619395,1720585857076,-656.85,0.00013753,2]
[331619396,1720585857086,-500.0,0.00013753,2]
[331619397,1720585857096,-500.0,0.00013753,2]
[331619398,1720585857106,-500.0,0.00013753,2]
[331619399,1720585857116,-2057.73,0.00013753,2]
[331619400,1720585857126,-500.0,0.00013753,2]
[331619401,1720585857137,-500.0,0.00013753,2]
[331619402,1720585857147,-500.0,0.00013753,2]
[331619403,1720585857157,-823.29,0.00013753,2]
[331619404,1720585857167,-500.0,0.00013753,2]
[331619405,1720585857178,-591.95,0.00013753,2]
[331619406,1720585857188,-574.88,0.00013753,2]
[331619407,1720585857198,-500.0,0.00013753,2]
[331619408,1720585857209,-151.0,0.00013753,2]
[331619409,1720585857219,-500.0,0.00013753,2]
[331619410,1720585857228,-500.0,0.00013753,2]
[331619411,1720585857237,-955.81,0.00013753,2]
[331619412,1720585857246,-500.0,0.00013753,2]
[331619413,1720585857256,-500.0,0.00013753,2]
[331619414,1720585857266,-1609.93,0.00013753,2]
[331619415,1720585857277,-881.57,0.00013753,2]
[331619416,1720585857286,-769.36,0.00013753,2]
[331619417,1720585857296,-1502.36,0.00013753,2]
[331619418,1720585857306,-500.0,0.00013753,2]
[331619419,1720585857317,-500.0,0.00013753,2]
[331619420,1720585857327,-1140.23,0.00013753,2]
[331619421,1720585857337,-500.0,0.00013753,2]
[331619422,1720585857347,-500.0,0.00013753,2]
[331619423,1720585857357,-1317.89,0.00013753,2]
[331619424,1720585857367,-500.0,0.00013753,2]
[331619425,1720585857376,-500.0,0.00013753,2]
[331619426,1720585857479,-500.0,0.00013753,2]
[331619427,1720585857489,-598.9,0.00013753,2]
[331619428,1720585857499,-180.39276086,0.00013753,2]
[331619429,1720585857509,-582.94,0.00013753,2]
[331619430,1720585857518,-974.55,0.00013753,2]
[331619431,1720585857528,-664.53,0.00013753,2]
[331619432,1720585857537,-577.31,0.00013753,2]
[331619433,1720585857546,-500.0,0.00013753,2]
[331619434,1720585857556,-533.52,0.00013753,2]
[331619435,1720585857565,-511.19,0.00013753,2]
[331619436,1720585857575,-790.55,0.00013753,2]
[331619437,1720585857585,-1568.25,0.00013753,2]
[331619438,1720585857595,-500.0,0.00013753,2]
[331619439,1720585857604,-500.0,0.00013753,2]
[331619440,1720585857614,-151.475828,0.00013753,2]
[331619441,1720585857623,-151.0,0.00013753,2]
[331619442,1720585857634,-651.92,0.00013753,2]
[331619443,1720585857644,-763.64,0.00013753,2]
[331619444,1720585857654,-500.0,0.00013753,2]
[331619445,1720585857664,-151.0,0.00013753,2]
[331619446,1720585857674,-500.0,0.00013753,2]
[331619447,1720585857683,-500.0,0.00013753,2]
[331619448,1720585857692,-1714.55,0.00013753,2]
[331619449,1720585857702,-535.96,0.00013753,2]
[331619450,1720585857714,-196.30626119,0.00013753,2]
[331619451,1720585857723,-500.0,0.00013753,2]
[331619452,1720585857732,-600.5,0.00013753,2]
[331619453,1720585857741,-784.46,0.00013753,2]
[331619454,1720585857751,-500.0,0.00013753,2]
[331619455,1720585857761,-500.0,0.00013753,2]
[331619456,1720585857771,-500.0,0.00013753,2]
[331619457,1720585857781,-500.0,0.00013753,2]
[331619458,1720585857791,-612.50218469,0.00013753,2]
[331619459,1720585857800,-500.0,0.00013753,2]
[331619460,1720585857810,-674.26,0.00013753,2]
[331619461,1720585857820,-500.0,0.00013753,2]
[331619462,1720585857829,-953.74,0.00013753,2]
[331619463,1720585857839,-500.0,0.00013753,2]
[331619464,1720585857848,-2242.83,0.00013753,2]
[331619465,1720585857857,-573.82,0.00013753,2]
[331619466,1720585857867,-500.0,0.00013753,2]
[331619467,1720585857877,-151.0,0.00013753,2]
[331619468,1720585857887,-500.0,0.00013753,2]
[331619469,1720585857896,-2164.72,0.00013753,2]
[331619470,1720585857906,-500.0,0.00013753,2]
[331619471,1720585857916,-500.0,0.00013753,2]
[331619472,1720585857925,-500.0,0.00013753,2]
[331619473,1720585857935,-982.47,0.00013753,2]
[331619474,1720585857944,-1477.67,0.00013753,2]
[331619475,1720585857953,-500.0,0.00013753,2]
[331619476,1720585857966,-500.0,0.00013753,2]
[331619477,1720585857975,-500.0,0.00013753,2]
[331619478,1720585857984,-1781.26,0.00013753,2]
[331619479,1720585857993,-1330.76,0.00013753,2]
[331619480,1720585858002,-846.15,0.00013753,2]
[331619481,1720585858011,-704.71,0.00013753,2]
[331619482,1720585858021,-500.0,0.00013753,2]
[331619483,1720585858030,-500.0,0.00013753,2]
[331619484,1720585858039,-948.26,0.00013753,2]
[331619485,1720585858049,-596.24,0.00013753,2]
[331619486,1720585858058,-500.0,0.00013753,2]
[331619487,1720585858067,-500.0,0.00013753,2]
[331619488,1720585858077,-500.0,0.00013753,2]
[331619489,1720585858087,-827.94,0.00013753,2]
[331619490,1720585858096,-500.0,0.00013753,2]
[331619491,1720585858105,-566.1,0.00013753,2]
[331619492,1720585858115,-500.0,0.00013753,2]
[331619493,1720585858125,-652.93,0.00013753,2]
[331619494,1720585858134,-500.0,0.00013753,2]
[331619495,1720585858143,-1514.56,0.00013753,2]
[331619496,1720585858152,-872.09,0.00013753,2]
[331619497,1720585858162,-500.0,0.00013753,2]
[331619498,1720585858171,-500.0,0.00013753,2]
[331619499,1720585858182,-500.0,0.00013753,2]
[331619500,1720585858192,-878.74,0.00013753,2]
[331619501,1720585858201,-500.0,0.00013753,2]
[331619502,1720585858213,-500.0,0.00013753,2]
[331619503,1720585858221,-1237.24,0.00013753,2]
[331619504,1720585858230,-544.06,0.00013753,2]
[331619505,1720585858239,-500.0,0.00013753,2]
[331619506,1720585858248,-500.0,0.00013753,2]
[331619507,1720585858257,-500.0,0.00013753,2]
[331619508,1720585858267,-151.0,0.00013753,2]
[331619509,1720585858277,-500.0,0.00013753,2]
[331619510,1720585858286,-500.0,0.00013753,2]
[331619511,1720585858294,-500.0,0.00013753,2]
[331619512,1720585858304,-500.0,0.00013753,2]
[331619513,1720585858314,-500.0,0.00013753,2]
[331619514,1720585858324,-936.62,0.00013753,2]
[331619515,1720585858334,-500.0,0.00013753,2]
[331619516,1720585858344,-660.1,0.00013753,2]
[331619517,1720585858354,-806.83,0.00013753,2]
[331619518,1720585858363,-500.0,0.00013753,2]
[331619519,1720585858373,-2500.0,0.00013753,3]
[331619520,1720585858382,-500.0,0.00013753,2]
[331619521,1720585858391,-500.0,0.00013753,2]
[331619522,1720585858401,-500.0,0.00013753,2]
[331619523,1720585858411,-914.98,0.00013753,2]
[331619524,1720585858420,-868.93,0.00013753,2]
[331619525,1720585858430,-844.73,0.00013753,2]
[331619526,1720585858440,-1075.48,0.00013753,2]
[331619527,1720585858450,-500.0,0.00013753,2]
[331619528,1720585858460,-917.11,0.00013753,2]
[331619529,1720585858470,-581.45,0.00013753,2]
[331619530,1720585858479,-779.98,0.00013753,2]
[331619531,1720585858489,-500.0,0.00013753,2]
[331619532,1720585858499,-500.0,0.00013753,2]
[331619533,1720585858509,-1175.87,0.00013753,2]
[331619534,1720585858519,-1610.97,0.00013753,2]
[331619535,1720585858528,-1032.41,0.00013753,2]
[331619536,1720585858538,-2534.44,0.00013753,2]
[331619537,1720585858548,-500.0,0.00013753,2]
[331619538,1720585858557,-500.0,0.00013753,2]
[331619539,1720585858566,-729.64,0.00013753,2]
[331619540,1720585858576,-1195.78,0.00013753,2]
[331619541,1720585858586,-500.0,0.00013753,2]
[331619542,1720585858597,-500.0,0.00013753,2]
[331619543,1720585858606,-500.0,0.00013753,2]
[331619544,1720585858617,-719.58,0.00013753,2]
[331619545,1720585858627,-1370.82,0.00013753,2]
[331619546,1720585858636,-500.0,0.00013753,2]
[331619547,1720585858645,-971.46,0.00013753,2]
[331619548,1720585858654,-500.0,0.00013753,2]
[331619549,1720585858664,-500.0,0.00013753,2]
[331619550,1720585858673,-1431.47,0.00013753,2]
[331619551,1720585858682,-500.0,0.00013753,2]
[331619552,1720585858691,-500.0,0.00013753,2]
[331619553,1720585858701,-500.0,0.00013753,2]
[331619554,1720585858713,-500.0,0.00013753,2]
[331619555,1720585858722,-500.0,0.00013753,2]
[331619556,1720585858731,-500.0,0.00013753,2]
[331619557,1720585858740,-500.0,0.00013753,2]
[331619558,1720585858752,-611.27,0.00013753,2]
[331619559,1720585858762,-1353.9,0.00013753,2]
[331619560,1720585858772,-697.06,0.00013753,2]
[331619561,1720585858781,-1951.99,0.00013753,2]
[331619562,1720585858791,-500.0,0.00013753,2]
[331619563,1720585858800,-500.0,0.00013753,2]
[331619564,1720585858809,-500.0,0.00013753,2]
[331619565,1720585858818,-500.0,0.00013753,2]
[331619566,1720585858829,-500.0,0.00013753,2]
[331619567,1720585858839,-178.571732,0.00013753,2]
[331619568,1720585858848,-500.0,0.00013753,2]
[331619569,1720585858857,-500.0,0.00013753,2]
[331619570,1720585858866,-641.04,0.00013753,2]
[331619571,1720585858876,-562.99289401,0.00013753,2]
[331619572,1720585858887,-800.22,0.00013753,2]
[331619573,1720585858897,-771.77,0.00013753,2]
[331619574,1720585858906,-500.0,0.00013753,2]
[331619575,1720585858915,-178.571732,0.00013753,2]
[331619576,1720585858925,-500.0,0.00013753,2]
[331619577,1720585858934,-500.0,0.00013753,2]
[331619578,1720585858943,-1096.31,0.00013753,2]
[331619579,1720585858952,-555.09,0.00013753,2]
[331619580,1720585858963,-500.0,0.00013753,2]
[331619581,1720585858972,-567.91,0.00013753,2]
[331619582,1720585858981,-1046.7,0.00013753,2]
[331619583,1720585858990,-500.0,0.00013753,2]
[331619584,1720585859000,-151.0,0.00013753,2]
[331619585,1720585859011,-617.05,0.00013753,2]
[331619586,1720585859020,-570.9,0.00013753,2]
[331619587,1720585859029,-1093.83,0.00013753,2]
[331619588,1720585859038,-500.0,0.00013753,2]
[331619589,1720585859047,-500.0,0.00013753,2]
[331619590,1720585859057,-500.0,0.00013753,2]
[331619591,1720585859067,-802.13,0.00013753,2]
[331619592,1720585859076,-539.46,0.00013753,2]
[331619593,1720585859086,-658.46,0.00013753,2]
[331619594,1720585859096,-500.0,0.00013753,2]
[331619595,1720585859107,-1718.62,0.00013753,2]
[331619596,1720585859117,-631.79,0.00013753,2]
[331619597,1720585859127,-500.0,0.00013753,2]
[331619598,1720585859136,-1527.46,0.00013753,2]
[331619599,1720585859146,-500.0,0.00013753,2]
[331619600,1720585859157,-618.87,0.00013753,2]
[331619601,1720585859167,-500.0,0.00013753,2]
[331619602,1720585859177,-500.0,0.00013753,2]
[331619603,1720585859187,-500.0,0.00013753,2]
[331619604,1720585859199,-711.98,0.00013753,2]
[331619605,1720585859211,-500.0,0.00013753,2]
[331619606,1720585859220,-500.0,0.00013753,2]
[331619607,1720585859229,-1186.74,0.00013753,2]
[331619608,1720585859238,-285.73508684,0.00013753,2]
[331619609,1720585859247,-500.0,0.00013753,2]
[331619610,1720585859256,-859.9,0.00013753,2]
[331619611,1720585859270,-500.0,0.00013753,2]
[331619612,1720585859279,-760.18,0.00013753,2]
[331619613,1720585859291,-593.09,0.00013753,2]
[331619614,1720585859301,-690.51,0.00013753,2]
[331619615,1720585859312,-560.93,0.00013753,2]
[331619616,1720585859322,-500.0,0.00013753,2]
[331619617,1720585859332,-731.62,0.00013753,2]
[331619618,1720585859343,-500.0,0.00013753,2]
[331619619,1720585859353,-500.0,0.00013753,2]
[331619620,1720585859362,-1294.67,0.00013753,2]
[331619621,1720585859371,-582.95,0.00013753,2]
[331619622,1720585859381,-558.4,0.00013753,2]
[331619623,1720585859392,-500.0,0.00013753,2]
[331619624,1720585859402,-1797.64,0.00013753,2]
[331619625,1720585859413,-844.18,0.00013753,2]
[331619626,1720585859423,-180.34591065,0.00013753,2]
[331619627,1720585859432,-500.0,0.00013753,2]
[331619628,1720585859442,-820.07,0.00013753,2]
[331619629,1720585859452,-500.0,0.00013753,2]
[331619630,1720585859463,-706.97,0.00013753,2]
[331619631,1720585859473,-2584.77,0.00013753,2]
[331619632,1720585859483,-1853.58,0.00013753,2]
[331619633,1720585859492,-500.0,0.00013753,2]
[331619634,1720585859503,-500.0,0.00013753,2]
[331619635,1720585859513,-761.59,0.00013753,2]
[331619636,1720585859522,-1146.59,0.00013753,2]
[331619637,1720585859532,-608.62,0.00013753,2]
[331619638,1720585859541,-500.0,0.00013753,2]
[331619639,1720585859551,-500.0,0.00013753,2]
[331619640,1720585859560,-1620.37,0.00013753,2]
[331619641,1720585859569,-958.82,0.00013753,2]
[331619642,1720585859579,-500.0,0.00013753,2]
[331619643,1720585859589,-500.0,0.00013753,2]
[331619644,1720585859598,-630.26,0.00013753,2]
[331619645,1720585859607,-584.65,0.00013753,2]
[331619646,1720585859619,-2064.45,0.00013753,2]
[331619647,1720585859630,-500.0,0.00013753,2]
[331619648,1720585859640,-500.0,0.00013753,2]
[331619649,1720585859650,-500.0,0.00013753,2]
[331619650,1720585859660,-1252.3,0.00013753,2]
[331619651,1720585859670,-500.0,0.00013753,2]
[331619652,1720585859680,-514.92,0.00013753,2]
[331619653,1720585859689,-500.0,0.00013753,2]
[331619654,1720585859698,-500.0,0.00013753,2]
[331619655,1720585859708,-801.78,0.00013753,2]
[331619656,1720585859719,-500.0,0.00013753,2]
[331619657,1720585859728,-500.0,0.00013753,2]
[331619658,1720585859738,-1373.06,0.00013753,2]
[331619659,1720585859747,-1004.08,0.00013753,2]
[331619660,1720585859756,-1825.25,0.00013753,2]
[331619661,1720585859766,-500.0,0.00013753,2]
[331619662,1720585859775,-500.0,0.00013753,2]
[331619663,1720585859784,-1559.67,0.00013753,2]
[331619664,1720585859794,-861.76,0.00013753,2]
[331619665,1720585859803,-500.0,0.00013753,2]
[331619666,1720585859812,-500.0,0.00013753,2]
[331619667,1720585859822,-500.0,0.00013753,2]
[331619668,1720585859831,-954.39,0.00013753,2]
[331619669,1720585859842,-500.0,0.00013753,2]
[331619670,1720585859852,-925.62,0.00013753,2]
[331619671,1720585859862,-1009.2,0.00013753,2]
[331619672,1720585859871,-500.0,0.00013753,2]
[331619673,1720585859881,-500.0,0.00013753,2]
[331619674,1720585859891,-500.0,0.00013753,2]
[331619675,1720585859901,-1262.27,0.00013753,2]
[331619676,1720585859911,-663.35,0.00013753,2]
[331619677,1720585859922,-500.0,0.00013753,2]
[331619678,1720585859933,-500.0,0.00013753,2]
[331619679,1720585859943,-500.0,0.00013753,2]
[331619680,1720585859954,-649.39,0.00013753,2]
[331619681,1720585859968,-1363.43,0.00013753,2]
[331619682,1720585859977,-2022.37,0.00013753,2]
[331619683,1720585859986,-500.0,0.00013753,2]
[331619684,1720585859999,-606.38,0.00013753,2]
[331619685,1720585860009,-1304.98,0.00013753,2]
[331619686,1720585860019,-219.50605522,0.00013753,2]
[331619687,1720585860029,-1366.08,0.00013753,2]
[331619688,1720585860039,-1680.63,0.00013753,2]
[331619689,1720585860048,-523.84,0.00013753,2]
[331619690,1720585860059,-500.0,0.00013753,2]
[331619691,1720585860068,-500.0,0.00013753,2]
[331619692,1720585860077,-500.0,0.00013753,2]
[331619693,1720585860087,-844.16,0.00013753,2]
[331619694,1720585860097,-500.0,0.00013753,2]